[Event "European Womens-ch 2025"]
[Site "Rhodes"]
[Date "2025.04.07"]
[Round "7.58"]
[White "Grapsa, Georgia"]
[Black "Nahapetyan, Ani"]
[Result "1-0"]
[Annotator "NA RC"]
[ECO "D11"]
[WhiteElo "2065"]
[BlackElo "1887"]
[PlyCount "69"]
[EventDate "2025.03.29"]
[EventType "swiss"]
[EventCountry "GRE"]
[SourceTitle "playchess.com"]
[Source "ChessBase"]
[SourceQuality "1"]
[TimeControl "40/5400+30:1800+30"]

1. d4 {[%emt 0:00:01]} d5 {[%emt 0:00:06]} 2. c4 {[%emt 0:00:05]} c6 {[%emt 0:00:05]} 3. Nf3 {[%emt 0:00:03]} Nf6 {[%emt 0:00:05]} 4. Nbd2 {[%emt 0:02:33]} Bf5 {[%emt 0:01:12]} 5. Nh4 {[%emt 0:00:10]} Be4 {[%emt 0:00:32]} 6. Nxe4 {[%emt 0:02:14]} Nxe4 {[%emt 0:00:50]} 7. Nf3 {[%emt 0:05:02]} e6 {[%emt 0:04:24]} 8. e3 {[%emt 0:05:02]} Nd7 {[%emt 0:06:52]} 9. Bd3 {[%emt 0:00:50]} Ndf6 {[%emt 0:06:57]} 10. O-O {[%emt 0:00:24]} Bd6 {[%emt 0:03:44]} 11. Ne5 {[%emt 0:09:00]} Bc7 {[%emt 0:12:19]} 12. f3 {[%emt 0:06:11]} Nd6 {[%emt 0:00:26]} 13. b3 {[%emt 0:08:11]} O-O {[%emt 0:03:01]} 14. Qc2 {[%emt 0:03:08]} h6 {[%emt 0:06:03]} 15. Bb2 {[%emt 0:03:58]} Nd7 {[%emt 0:07:14]} 16. c5 {[%emt 0:05:45]} Ne8 {[%emt 0:04:45]} 17. Nxd7 {[%emt 0:12:30]} Qxd7 {[%emt 0:00:09]} 18. e4 {[%emt 0:00:02]} dxe4 {[%emt 0:01:52]} 19. fxe4 {[%emt 0:00:10]} Rd8 {[%emt 0:06:57]} 20. Rf3 {[%emt 0:04:31]} Qe7 {[%emt 0:04:16]} 21. Qc3 {[%emt 0:01:57]} Nf6 {[%emt 0:03:38]} 22. Raf1 {[%emt 0:01:58]} Rfe8 {[%emt 0:02:40]} 23. e5 {[%emt 0:04:07]} Nd5 {[%emt 0:00:11]} 24. Qe1 {[%emt 0:00:09]} Rf8 {[%emt 0:03:11]} 25. Qe4 {[%emt 0:02:31]} g6 {[%emt 0:00:06]} 26. Bc1 {[%emt 0:00:44]} Kg7 {[%emt 0:03:15]} 27. Rxf7+ {[%emt 0:08:31]} Rxf7 {[%emt 0:00:39]} 28. Qxg6+ {[%emt 0:00:24]} Kf8 {[%emt 0:00:15]} 29. Bxh6+ {[%emt 0:00:03]} Ke8 {[%emt 0:00:21]} 30. Qg8+ {[%emt 0:00:08]} Kd7 {[%emt 0:00:03]} 31. Qxf7 {[%emt 0:00:11]} Qxf7 {[%emt 0:03:14]} 32. Rxf7+ {[%emt 0:00:06]} Kc8 {[%emt 0:00:04]} 33. Bc4 {[%emt 0:03:44]} Nc3 {[%emt 0:00:37]} 34. Bxe6+ {[%emt 0:00:22]} Kb8 {[%emt 0:00:03]} 35. Kf2 {[%emt 0:01:56]} 1-0

[Event "European Womens-ch 2025"]
[Site "Rhodes"]
[Date "2025.04.07"]
[Round "7.59"]
[White "Alexandri, Vasiliki"]
[Black "Shuqja, Klean"]
[Result "0-1"]
[Annotator "NA RC"]
[ECO "D36"]
[WhiteElo "1927"]
[BlackElo "2049"]
[PlyCount "70"]
[EventDate "2025.03.29"]
[EventType "swiss"]
[EventCountry "GRE"]
[SourceTitle "playchess.com"]
[Source "ChessBase"]
[SourceQuality "1"]
[TimeControl "40/5400+30:1800+30"]

1. d4 {[%emt 0:00:02]} Nf6 {[%emt 1:31:00]} 2. c4 {[%emt 0:00:07]} e6 {[%emt 0:00:00]} 3. Nc3 {[%emt 0:00:07]} Bb4 {[%emt 0:00:00]} 4. Qc2 {[%emt 0:00:07]} d5 {[%emt 0:00:00]} 5. cxd5 {[%emt 0:00:06]} exd5 {[%emt 0:00:00]} 6. Bg5 {[%emt 0:00:12]} h6 {[%emt 0:00:00]} 7. Bh4 {[%emt 0:00:06]} O-O {[%emt 0:00:00]} 8. e3 {[%emt 0:00:16]} Re8 {[%emt 0:00:00]} 9. Bd3 {[%emt 0:02:24]} Be7 {[%emt 0:00:00]} 10. Nge2 {[%emt 0:02:57]} b6 {[%emt 0:00:00]} 11. O-O {[%emt 0:02:15]} Bb7 {[%emt 0:00:00]} 12. Rad1 {[%emt 0:03:48]} Nbd7 {[%emt 0:05:30]} 13. f3 {[%emt 0:02:09]} c5 {[%emt 0:00:00]} 14. Bf2 {[%emt 0:02:12]} a6 {[%emt 0:00:00]} 15. Bf5 {[%emt 0:05:28]} Qc7 {[%emt 0:00:00]} 16. Bxd7 {[%emt 0:10:51]} Qxd7 {[%emt 0:00:00]} 17. e4 {[%emt 0:07:04]} dxe4 {[%emt 0:00:00]} 18. dxc5 {[%emt 0:11:08]} Qc6 {[%emt 0:00:00]} 19. Nxe4 {[%emt 0:06:11]} Nxe4 {[%emt 0:00:00]} 20. fxe4 {[%emt 0:01:13]} Bxc5 {[%emt 0:00:00]} 21. Bxc5 {[%emt 0:04:23]} Rxe4 {[%emt 0:00:00]} 22. Ng3 {[%emt 0:15:00]} Re5 {[%emt 0:00:00]} 23. Rd6 {[%emt 0:15:14]} Qxc5+ {[%emt 0:00:00]} 24. Qxc5 {[%emt 0:00:11]} bxc5 {[%emt 0:00:00]} 25. Rd7 {[%emt 0:01:16]} Bd5 {[%emt 0:00:00]} 26. Rc7 {[%emt 0:00:48]} Bxa2 {[%emt 0:00:00]} 27. Nf5 {[%emt 0:01:21]} Rae8 {[%emt 0:00:00]} 28. Nd6 {[%emt 0:01:22]} R8e7 {[%emt 0:00:00]} 29. Rc8+ {[%emt 0:01:00]} Kh7 {[%emt 0:00:00]} 30. Ra8 {[%emt 0:01:50]} Re2 {[%emt 0:02:23]} 31. Rxa6 {[%emt 0:03:13]} Rxb2 {[%emt 0:00:32]} 32. Ra3 {[%emt 0:00:55]} Bb3 {[%emt 0:00:41]} 33. Rc1 {[%emt 0:01:11]} Ree2 {[%emt 0:00:28]} 34. g3 {[%emt 0:00:17]} Rg2+ {[%emt 0:00:26]} 35. Kh1 {[%emt 0:00:43]} Rxh2+ {[%emt 0:00:11]} 0-1

[Event "European Womens-ch 2025"]
[Site "Rhodes"]
[Date "2025.04.07"]
[Round "7.60"]
[White "Korenova, Martina"]
[Black "Mitraka, Chrysoula-Paraskevi"]
[Result "1-0"]
[Annotator "NA RC"]
[ECO "E04"]
[WhiteElo "2045"]
[BlackElo "1820"]
[PlyCount "67"]
[EventDate "2025.03.29"]
[EventType "swiss"]
[EventCountry "GRE"]
[SourceTitle "playchess.com"]
[Source "ChessBase"]
[SourceQuality "1"]
[TimeControl "40/5400+30:1800+30"]

1. d4 {[%emt 0:00:04]} d5 {[%emt 0:00:42]} 2. Nf3 {[%emt 0:00:55]} Nf6 {[%emt 0:02:31]} 3. c4 {[%emt 0:00:50]} e6 {[%emt 0:00:26]} 4. g3 {[%emt 0:00:18]} dxc4 {[%emt 0:00:36]} 5. Bg2 {[%emt 0:01:13]} Nc6 {[%emt 0:00:37]} 6. O-O {[%emt 0:02:10]} Rb8 {[%emt 0:00:12]} 7. Nc3 {[%emt 0:07:10]} b5 {[%emt 0:07:20]} 8. Ne5 {[%emt 0:00:51]} Nxe5 {[%emt 0:01:43]} 9. dxe5 {[%emt 0:00:07]} Nd7 {[%emt 0:00:29]} 10. Qd4 {[%emt 0:01:02]} Bb7 {[%emt 0:08:36]} 11. Rd1 {[%emt 0:06:35]} Bxg2 {[%emt 0:06:02]} 12. Kxg2 {[%emt 0:00:19]} c5 {[%emt 0:04:54]} 13. Qg4 {[%emt 0:11:41]} Qc7 {[%emt 0:05:31]} 14. a4 {[%emt 0:05:06]} a6 {[%emt 0:06:40]} 15. axb5 {[%emt 0:00:08]} axb5 {[%emt 0:01:04]} 16. Bf4 {[%emt 0:03:30]} h6 {[%emt 0:13:49]} 17. h4 {[%emt 0:22:48]} g6 {[%emt 0:08:20]} 18. Ne4 {[%emt 0:04:45]} Be7 {[%emt 0:08:02]} 19. Nd6+ {[%emt 0:09:43]} Bxd6 {[%emt 0:02:31]} 20. Rxd6 {[%emt 0:00:29]} Rb6 {[%emt 0:08:40]} 21. Qf3 {[%emt 0:08:54]} Rb8 {[%emt 0:06:24]} 22. Rad1 {[%emt 0:06:12]} Rd8 {[%emt 0:00:52]} 23. Qe3 {[%emt 0:00:16]} O-O {[%emt 0:05:21]} 24. Bxh6 {[%emt 0:00:13]} Rfe8 {[%emt 0:00:26]} 25. Bg5 {[%emt 0:00:17]} f6 {[%emt 0:00:26]} 26. exf6 {[%emt 0:00:22]} Kf7 {[%emt 0:00:28]} 27. Qd2 {[%emt 0:01:42]} Qb7+ {[%emt 0:00:42]} 28. f3 {[%emt 0:00:09]} b4 {[%emt 0:00:28]} 29. Rxd7+ {[%emt 0:00:20]} Rxd7 {[%emt 0:00:11]} 30. Qxd7+ {[%emt 0:00:06]} Qxd7 {[%emt 0:00:10]} 31. Rxd7+ {[%emt 0:00:03]} Kf8 {[%emt 0:00:18]} 32. Bh6+ {[%emt 0:00:07]} Kg8 {[%emt 0:00:26]} 33. f7+ {[%emt 0:00:22]} Kh8 {[%emt 0:00:42]} 34. fxe8=Q# {[%emt 0:00:09]} 1-0

[Event "European Womens-ch 2025"]
[Site "Rhodes"]
[Date "2025.04.07"]
[Round "7.61"]
[White "Caku, Kler"]
[Black "Harutyunyan, Gabriela"]
[Result "1-0"]
[Annotator "NA RC"]
[ECO "B45"]
[WhiteElo "2036"]
[BlackElo "1793"]
[PlyCount "87"]
[EventDate "2025.03.29"]
[EventType "swiss"]
[EventCountry "GRE"]
[SourceTitle "playchess.com"]
[Source "ChessBase"]
[SourceQuality "1"]
[TimeControl "40/5400+30:1800+30"]

1. e4 {[%emt 0:00:01]} c5 {[%emt 0:00:08]} 2. Nf3 {[%emt 0:00:07]} Nc6 {[%emt 0:00:07]} 3. d4 {[%emt 0:00:03]} cxd4 {[%emt 0:00:09]} 4. Nxd4 {[%emt 0:00:04]} Nf6 {[%emt 0:00:07]} 5. Nc3 {[%emt 0:00:09]} e6 {[%emt 0:00:06]} 6. Ndb5 {[%emt 0:00:45]} Bb4 {[%emt 1:32:53]} 7. a3 {[%emt 0:00:49]} Bxc3+ {[%emt 0:00:00]} 8. Nxc3 {[%emt 0:00:04]} d5 {[%emt 0:00:00]} 9. exd5 {[%emt 0:00:05]} exd5 {[%emt 0:00:00]} 10. Bd3 {[%emt 0:00:21]} O-O {[%emt 0:00:00]} 11. O-O {[%emt 0:00:45]} d4 {[%emt 0:00:00]} 12. Ne2 {[%emt 0:03:37]} Bg4 {[%emt 0:00:00]} 13. Bg5 {[%emt 0:05:14]} Re8 {[%emt 0:00:00]} 14. f3 {[%emt 0:07:52]} Bh5 {[%emt 0:00:00]} 15. Nf4 {[%emt 0:10:57]} Bg6 {[%emt 0:00:00]} 16. Nxg6 {[%emt 0:04:02]} hxg6 {[%emt 0:00:00]} 17. Qd2 {[%emt 0:01:39]} Ne5 {[%emt 0:00:00]} 18. Rad1 {[%emt 0:04:38]} Qb6 {[%emt 0:00:00]} 19. Bxf6 {[%emt 0:06:37]} Qxf6 {[%emt 0:00:00]} 20. Be4 {[%emt 0:01:58]} Rad8 {[%emt 0:00:00]} 21. Qb4 {[%emt 0:05:50]} Rd7 {[%emt 0:00:00]} 22. Rfe1 {[%emt 0:08:20]} Qg5 {[%emt 0:00:00]} 23. Kh1 {[%emt 0:02:44]} Red8 {[%emt 0:00:00]} 24. Bd3 {[%emt 0:06:51]} Nc6 {[%emt 0:00:00]} 25. Qd2 {[%emt 0:02:50]} Qxd2 {[%emt 0:00:00]} 26. Rxd2 {[%emt 0:00:05]} Ne7 {[%emt 0:00:00]} 27. Bb5 {[%emt 0:03:48]} Rc7 {[%emt 0:00:00]} 28. Kg1 {[%emt 0:03:01]} Nf5 {[%emt 0:00:00]} 29. Ba4 {[%emt 0:02:33]} Rcc8 {[%emt 0:00:00]} 30. Re4 {[%emt 0:01:28]} Rd6 {[%emt 0:00:00]} 31. g4 {[%emt 0:04:23]} Nh4 {[%emt 0:00:00]} 32. Kf2 {[%emt 0:00:36]} a5 {[%emt 0:00:00]} 33. Re5 {[%emt 0:03:57]} Rf6 {[%emt 0:00:00]} 34. Rd3 {[%emt 0:00:14]} Rb6 {[%emt 0:03:45]} 35. Kg3 {[%emt 0:03:56]} g5 {[%emt 0:02:19]} 36. Rxg5 {[%emt 0:00:20]} Ng6 {[%emt 0:00:11]} 37. Rxd4 {[%emt 0:02:08]} Rxb2 {[%emt 0:00:42]} 38. Bb3 {[%emt 0:00:45]} Nf8 {[%emt 0:02:23]} 39. Rxa5 {[%emt 0:00:36]} Rb1 {[%emt 0:00:39]} 40. Rb4 {[%emt 0:00:00]} Rg1+ {[%emt 0:00:00]} 41. Kf2 {[%emt 0:02:44]} Rd1 {[%emt 0:02:59]} 42. Rxb7 {[%emt 0:00:36]} Nd7 {[%emt 0:02:01]} 43. Rf5 {[%emt 0:07:03]} Rc5 {[%emt 0:04:00]} 44. Rxd7 {[%emt 0:01:26]} 1-0

[Event "European Womens-ch 2025"]
[Site "Rhodes"]
[Date "2025.04.07"]
[Round "7.62"]
[White "Hariharan, Shambavi"]
[Black "Recica, Jona"]
[Result "0-1"]
[Annotator "NA RC"]
[ECO "D30"]
[WhiteElo "2024"]
[BlackElo "1716"]
[PlyCount "74"]
[EventDate "2025.03.29"]
[EventType "swiss"]
[EventCountry "GRE"]
[SourceTitle "playchess.com"]
[Source "ChessBase"]
[SourceQuality "1"]
[TimeControl "40/5400+30:1800+30"]

1. d4 {[%emt 0:00:04]} d5 {[%emt 0:00:21]} 2. c4 {[%emt 0:00:04]} c6 {[%emt 0:00:12]} 3. Nf3 {[%emt 0:00:14]} Nf6 {[%emt 0:00:15]} 4. e3 {[%emt 0:00:04]} e6 {[%emt 0:00:16]} 5. b3 {[%emt 0:00:14]} Bd6 {[%emt 0:01:53]} 6. Bb2 {[%emt 0:00:22]} Nbd7 {[%emt 0:00:42]} 7. Nbd2 {[%emt 0:00:05]} O-O {[%emt 0:00:22]} 8. Bd3 {[%emt 0:00:02]} Re8 {[%emt 0:00:35]} 9. Qc2 {[%emt 0:04:36]} h6 {[%emt 0:03:52]} 10. Ne5 {[%emt 0:05:56]} Qc7 {[%emt 0:10:09]} 11. f4 {[%emt 0:01:50]} b6 {[%emt 0:01:18]} 12. O-O {[%emt 0:05:58]} c5 {[%emt 0:04:50]} 13. Ndf3 {[%emt 0:03:00]} Bb7 {[%emt 0:02:42]} 14. Qf2 {[%emt 0:07:40]} Ne4 {[%emt 0:06:21]} 15. Qh4 {[%emt 0:03:54]} f5 {[%emt 0:03:27]} 16. cxd5 {[%emt 0:08:14]} Bxd5 {[%emt 0:03:17]} 17. Bb5 {[%emt 0:04:01]} Nef6 {[%emt 0:09:32]} 18. Nxd7 {[%emt 0:10:49]} Nxd7 {[%emt 0:00:53]} 19. dxc5 {[%emt 0:00:55]} Bxc5 {[%emt 0:02:50]} 20. Qg3 {[%emt 0:11:26]} Bxe3+ {[%emt 0:02:03]} 21. Kh1 {[%emt 0:00:17]} Re7 {[%emt 0:00:09]} 22. Bxd7 {[%emt 0:01:47]} Bxf4 {[%emt 0:02:36]} 23. Bxe6+ {[%emt 0:03:30]} Rxe6 {[%emt 0:04:36]} 24. Qh3 {[%emt 0:02:46]} Rf8 {[%emt 0:01:53]} 25. Nd4 {[%emt 0:02:16]} Rg6 {[%emt 0:00:38]} 26. Rf2 {[%emt 0:02:45]} Be4 {[%emt 0:04:54]} 27. Nf3 {[%emt 0:06:18]} Be3 {[%emt 0:04:11]} 28. Ne5 {[%emt 0:04:39]} Bxf2 {[%emt 0:04:00]} 29. Nxg6 {[%emt 0:00:11]} Rd8 {[%emt 0:01:12]} 30. Qc3 {[%emt 0:03:57]} Qxc3 {[%emt 0:02:00]} 31. Bxc3 {[%emt 0:00:07]} Rd3 {[%emt 0:00:57]} 32. Be5 {[%emt 0:01:14]} Rd2 {[%emt 0:02:10]} 33. Bf4 {[%emt 0:02:01]} Rc2 {[%emt 0:01:36]} 34. Rd1 {[%emt 0:00:11]} Bc5 {[%emt 0:00:35]} 35. Bd2 {[%emt 0:05:46]} Rxa2 {[%emt 0:01:35]} 36. b4 {[%emt 0:00:34]} Bxg2+ {[%emt 0:00:45]} 37. Kxg2 {[%emt 0:00:18]} Bxb4 {[%emt 0:00:04]} 0-1

[Event "European Womens-ch 2025"]
[Site "Rhodes"]
[Date "2025.04.07"]
[Round "7.63"]
[White "Bania, Eleni"]
[Black "Acarbay, Algi"]
[Result "0-1"]
[Annotator "NA RC"]
[ECO "B36"]
[WhiteElo "1809"]
[BlackElo "2052"]
[PlyCount "78"]
[EventDate "2025.03.29"]
[EventType "swiss"]
[EventCountry "GRE"]
[SourceTitle "playchess.com"]
[Source "ChessBase"]
[SourceQuality "1"]
[TimeControl "40/5400+30:1800+30"]

1. e4 {[%emt 0:00:02]} c5 {[%emt 0:00:06]} 2. Nf3 {[%emt 0:00:05]} a6 {[%emt 0:00:05]} 3. c4 {[%emt 0:00:09]} Nc6 {[%emt 0:00:28]} 4. d4 {[%emt 0:01:03]} cxd4 {[%emt 0:01:09]} 5. Nxd4 {[%emt 0:00:05]} Nxd4 {[%emt 0:03:52]} 6. Qxd4 {[%emt 0:00:06]} d6 {[%emt 0:00:25]} 7. Nc3 {[%emt 0:01:24]} Nf6 {[%emt 1:27:55]} 8. Be2 {[%emt 0:05:19]} g6 {[%emt 0:00:00]} 9. O-O {[%emt 0:01:01]} Bg7 {[%emt 0:01:00]} 10. Be3 {[%emt 0:00:38]} O-O {[%emt 0:00:30]} 11. Qd2 {[%emt 0:00:54]} Be6 {[%emt 0:00:00]} 12. Rac1 {[%emt 1:25:44]} Qa5 {[%emt 0:01:00]} 13. b4 {[%emt 0:00:30]} Qxb4 {[%emt 0:00:00]} 14. Rb1 {[%emt 0:00:00]} Qa5 {[%emt 0:01:00]} 15. Rxb7 {[%emt 0:01:00]} Rfe8 {[%emt 0:00:30]} 16. f3 {[%emt 0:00:30]} Rac8 {[%emt 0:00:30]} 17. Nd5 {[%emt 0:00:30]} Qxd2 {[%emt 0:00:00]} 18. Bxd2 {[%emt 0:00:30]} Bxd5 {[%emt 0:01:00]} 19. cxd5 {[%emt 0:00:30]} Rc2 {[%emt 0:00:00]} 20. Rd1 {[%emt 0:00:30]} Rxa2 {[%emt 0:01:00]} 21. Kf1 {[%emt 0:00:30]} Kf8 {[%emt 0:00:00]} 22. Ra7 {[%emt 0:00:00]} Rb8 {[%emt 0:00:00]} 23. Rxa6 {[%emt 0:00:00]} Rxa6 {[%emt 0:00:00]} 24. Bxa6 {[%emt 0:00:00]} Nd7 {[%emt 0:00:00]} 25. Rc1 {[%emt 0:00:00]} Nc5 {[%emt 0:00:00]} 26. Bc4 {[%emt 0:00:00]} Bd4 {[%emt 0:00:00]} 27. Be2 {[%emt 0:00:00]} Kg7 {[%emt 0:00:00]} 28. g3 {[%emt 0:00:00]} Rb2 {[%emt 0:00:00]} 29. Bc3 {[%emt 0:00:00]} Bxc3 {[%emt 0:00:00]} 30. Rxc3 {[%emt 0:00:00]} Kf6 {[%emt 0:01:18]} 31. Kf2 {[%emt 0:00:00]} g5 {[%emt 0:04:12]} 32. h3 {[%emt 0:05:30]} Rb1 {[%emt 0:00:00]} 33. Ra3 {[%emt 0:00:00]} Rh1 {[%emt 0:00:13]} 34. Bf1 g4 {[%emt 0:01:17]} 35. hxg4 {[%emt 0:00:22]} Rh6 {[%emt 0:00:30]} 36. Bg2 {[%emt 0:00:47]} Rg6 {[%emt 0:00:30]} 37. Ke3 {[%emt 0:01:21]} Rg8 {[%emt 0:00:30]} 38. Bh3 {[%emt 0:00:00]} Rb8 {[%emt 0:00:30]} 39. Kf4 {[%emt 0:00:26]} h6 {[%emt 0:00:30]} 0-1

[Event "European Womens-ch 2025"]
[Site "Rhodes"]
[Date "2025.04.07"]
[Round "7.65"]
[White "Korinioti, Myrto"]
[Black "Revelioti, Eleni Nefeli"]
[Result "1-0"]
[Annotator "NA COMBH"]
[ECO "B76"]
[WhiteElo "1667"]
[BlackElo "1470"]
[PlyCount "87"]
[EventDate "2025.03.29"]
[EventType "swiss"]
[EventCountry "GRE"]
[SourceTitle "playchess.com"]
[Source "ChessBase"]
[SourceQuality "1"]
[TimeControl "40/5400+30:1800+30"]

1. e4 {[%emt 0:00:12]} c5 {[%emt 0:00:39]} 2. Nf3 {[%emt 0:00:17]} d6 {[%emt 0:00:37]} 3. d4 {[%emt 0:00:16]} cxd4 {[%emt 0:00:42]} 4. Nxd4 {[%emt 0:00:08]} Nf6 {[%emt 0:01:34]} 5. Nc3 {[%emt 0:00:12]} g6 {[%emt 0:00:46]} 6. Be3 {[%emt 0:00:13]} Bg7 {[%emt 0:01:30]} 7. f3 {[%emt 0:00:23]} Nc6 {[%emt 0:07:48]} 8. Qd2 {[%emt 0:00:45]} Bd7 {[%emt 0:02:30]} 9. O-O-O {[%emt 0:00:27]} O-O {[%emt 0:00:14]} 10. g4 {[%emt 0:06:10]} e5 {[%emt 0:05:15]} 11. Nde2 {[%emt 0:20:36]} Ne8 {[%emt 0:22:00]} 12. h4 {[%emt 0:06:22]} Qa5 {[%emt 0:14:35]} 13. h5 {[%emt 0:03:09]} b5 {[%emt 0:07:48]} 14. hxg6 {[%emt 0:12:21]} fxg6 {[%emt 0:00:11]} 15. Bh6 {[%emt 0:19:11]} Rf7 {[%emt 0:06:15]} 16. Bxg7 {[%emt 0:01:12]} Rxg7 {[%emt 0:00:10]} 17. Kb1 {[%emt 0:03:32]} b4 {[%emt 0:00:31]} 18. Qd5+ {[%emt 0:03:05]} Qxd5 {[%emt 0:00:42]} 19. Nxd5 {[%emt 0:00:59]} Be6 {[%emt 0:01:15]} 20. Rd3 {[%emt 0:04:55]} a5 {[%emt 0:02:46]} 21. Kc1 {[%emt 0:01:15]} Rb7 {[%emt 0:01:15]} 22. a4 {[%emt 0:05:27]} Kg7 {[%emt 0:03:05]} 23. b3 {[%emt 0:00:23]} Rc8 {[%emt 0:01:10]} 24. Bh3 {[%emt 0:00:53]} Rd8 {[%emt 0:01:04]} 25. g5 {[%emt 0:00:41]} Bxd5 {[%emt 0:00:31]} 26. Rxd5 {[%emt 0:00:42]} Nc7 {[%emt 0:00:20]} 27. Rd3 {[%emt 0:00:37]} Na6 {[%emt 0:00:23]} 28. Rhd1 {[%emt 0:00:31]} Rc7 {[%emt 0:01:20]} 29. Rxd6 {[%emt 0:00:25]} Rxd6 {[%emt 0:00:24]} 30. Rxd6 {[%emt 0:00:07]} Nc5 {[%emt 0:00:53]} 31. Kd2 {[%emt 0:01:04]} Nb7 {[%emt 0:00:45]} 32. Rd7+ {[%emt 0:00:48]} Rxd7+ {[%emt 0:00:08]} 33. Bxd7 {[%emt 0:00:08]} Ne7 {[%emt 0:00:16]} 34. Nc1 {[%emt 0:03:02]} h5 {[%emt 0:00:12]} 35. gxh6+ {[%emt 0:00:21]} Kxh6 {[%emt 0:00:08]} 36. Nd3 {[%emt 0:00:14]} g5 {[%emt 0:00:10]} 37. Nxe5 {[%emt 0:00:31]} Ng6 {[%emt 0:00:27]} 38. Nxg6 {[%emt 0:00:20]} Kxg6 {[%emt 0:00:07]} 39. Ke3 {[%emt 0:00:26]} Kh5 {[%emt 0:00:08]} 40. Bg4+ {[%emt 0:00:00]} Kh4 {[%emt 0:00:00]} 41. e5 {[%emt 0:00:52]} Nd8 {[%emt 0:00:35]} 42. Bd7 {[%emt 0:01:31]} Nb7 {[%emt 0:00:17]} 43. e6 {[%emt 0:00:14]} Nd6 {[%emt 0:00:06]} 44. e7 {[%emt 0:00:22]} 1-0

[Event "European Womens-ch 2025"]
[Site "Rhodes"]
[Date "2025.04.07"]
[Round "7.66"]
[White "Karadas, Hena"]
[Black "Kaka, Rengina Tsampika"]
[Result "1-0"]
[Annotator "NA RC"]
[ECO "D03"]
[WhiteElo "1931"]
[BlackElo "1509"]
[PlyCount "117"]
[EventDate "2025.03.29"]
[EventType "swiss"]
[EventCountry "GRE"]
[SourceTitle "playchess.com"]
[Source "ChessBase"]
[SourceQuality "1"]
[TimeControl "40/5400+30:1800+30"]

1. d4 {[%emt 0:00:03]} d5 {[%emt 0:00:22]} 2. Nf3 {[%emt 0:00:27]} Nf6 {[%emt 0:00:21]} 3. Bg5 {[%emt 0:00:29]} Bf5 {[%emt 0:00:43]} 4. e3 {[%emt 0:00:25]} h6 {[%emt 0:00:38]} 5. Bh4 {[%emt 0:00:04]} e6 {[%emt 0:01:45]} 6. Bd3 {[%emt 0:01:08]} Bxd3 {[%emt 0:03:16]} 7. Qxd3 {[%emt 0:00:03]} Nbd7 {[%emt 0:01:12]} 8. Nbd2 {[%emt 0:04:11]} Be7 {[%emt 0:01:53]} 9. h3 {[%emt 0:02:48]} O-O {[%emt 0:01:40]} 10. g4 {[%emt 0:02:03]} Nh7 {[%emt 0:04:17]} 11. Bxe7 {[%emt 0:01:21]} Qxe7 {[%emt 0:00:18]} 12. O-O-O {[%emt 0:01:11]} c5 {[%emt 0:01:28]} 13. c3 {[%emt 0:00:43]} a6 {[%emt 0:01:30]} 14. Rdg1 {[%emt 0:03:50]} Ng5 {[%emt 0:04:14]} 15. Nxg5 {[%emt 0:04:13]} hxg5 {[%emt 0:00:53]} 16. h4 {[%emt 0:01:28]} gxh4 {[%emt 0:01:16]} 17. g5 {[%emt 0:00:28]} g6 {[%emt 0:01:39]} 18. Rxh4 {[%emt 0:00:50]} Kg7 {[%emt 0:01:13]} 19. e4 {[%emt 0:05:56]} Rh8 {[%emt 0:05:30]} 20. Rf4 {[%emt 0:02:37]} Rh5 {[%emt 0:06:59]} 21. Rfg4 {[%emt 0:06:16]} Rah8 {[%emt 0:08:22]} 22. exd5 {[%emt 0:03:46]} exd5 {[%emt 0:04:09]} 23. dxc5 {[%emt 0:01:28]} Qxc5 {[%emt 0:02:30]} 24. Qd4+ {[%emt 0:00:51]} Qxd4 {[%emt 0:02:07]} 25. Rxd4 {[%emt 0:00:14]} Rh1 {[%emt 0:03:18]} 26. Rxh1 {[%emt 0:00:42]} Rxh1+ {[%emt 0:00:09]} 27. Kc2 {[%emt 0:00:02]} Nf8 {[%emt 0:02:06]} 28. Rxd5 {[%emt 0:00:20]} Ne6 {[%emt 0:02:05]} 29. Ne4 {[%emt 0:05:23]} Rg1 {[%emt 0:08:28]} 30. a4 {[%emt 0:01:36]} Rg4 {[%emt 0:03:24]} 31. Re5 {[%emt 0:00:56]} Kf8 {[%emt 0:05:08]} 32. a5 {[%emt 0:03:07]} Ke7 {[%emt 0:01:47]} 33. b4 {[%emt 0:00:35]} Kd8 {[%emt 0:01:39]} 34. Nd6 {[%emt 0:01:03]} Nxg5 {[%emt 0:01:58]} 35. Rxg5 {[%emt 0:00:11]} Rxg5 {[%emt 0:02:32]} 36. Nxf7+ {[%emt 0:00:08]} Ke7 {[%emt 0:01:23]} 37. Nxg5 {[%emt 0:00:06]} Kf6 {[%emt 0:00:07]} 38. Ne4+ {[%emt 0:00:04]} Kf5 {[%emt 0:00:16]} 39. Nc5 {[%emt 0:00:13]} Kf4 {[%emt 0:00:30]} 40. Kd2 {[%emt 0:00:00]} Kf3 {[%emt 0:00:00]} 41. Ke1 {[%emt 0:00:15]} Kf4 {[%emt 0:01:36]} 42. Nxb7 {[%emt 0:00:08]} Ke5 {[%emt 0:00:10]} 43. Nc5 {[%emt 0:00:19]} Kd6 {[%emt 0:00:57]} 44. Nxa6 {[%emt 0:00:08]} Kc6 {[%emt 0:00:16]} 45. c4 {[%emt 0:00:06]} Kb7 {[%emt 0:00:36]} 46. b5 {[%emt 0:00:05]} Ka7 {[%emt 0:00:22]} 47. c5 {[%emt 0:00:08]} g5 {[%emt 0:00:38]} 48. c6 {[%emt 0:00:09]} g4 {[%emt 0:00:34]} 49. c7 {[%emt 0:00:13]} Kb7 {[%emt 0:00:14]} 50. b6 {[%emt 0:00:23]} g3 {[%emt 0:00:15]} 51. fxg3 {[%emt 0:00:08]} Kc8 {[%emt 0:00:25]} 52. g4 {[%emt 0:00:10]} Kb7 {[%emt 0:00:43]} 53. g5 {[%emt 0:00:12]} Kc8 {[%emt 0:00:35]} 54. g6 {[%emt 0:00:05]} Kb7 {[%emt 0:00:24]} 55. g7 {[%emt 0:00:09]} Kxa6 {[%emt 0:00:28]} 56. c8=Q+ {[%emt 0:00:07]} Kxa5 {[%emt 0:00:25]} 57. g8=Q {[%emt 0:00:26]} Kb5 {[%emt 0:00:32]} 58. Qb3+ {[%emt 0:00:10]} Ka5 {[%emt 0:00:23]} 59. Qa8# {[%emt 0:00:05]} 1-0